bitfinex/quotes_BTCUSD_20241020
["timestamp","ask_amount","ask_price","bid_price","bid_amount"]
[1729431610270,0.0764,68434.0,68427.0,0.03]
[1729431610271,0.00219194,68431.0,68427.0,0.03]
[1729431612729,0.0764,68434.0,68427.0,0.03]
[1729431613181,0.00724065,68433.0,68427.0,0.03]
[1729431614042,0.0764,68434.0,68427.0,0.03]
[1729431614261,0.000827,68431.0,68427.0,0.03]
[1729431614708,0.00219194,68430.0,68427.0,0.03]
[1729431617982,0.000827,68431.0,68427.0,0.03]
[1729431618248,0.000827,68431.0,68427.0,0.036]
[1729431618901,0.00301882,68431.0,68427.0,0.036]
[1729431619420,0.000827,68440.0,68432.0,0.023]
[1729431619648,0.000827,68440.0,68438.0,0.14895915]
[1729431620149,0.000827,68440.0,68439.0,0.04548437]
[1729431620371,0.000827,68440.0,68438.0,0.2580228]
[1729431620588,0.000827,68440.0,68438.0,0.23621241]
[1729431622792,0.000827,68440.0,68438.0,0.14895915]
[1729431623283,0.000827,68440.0,68437.0,0.00217]
[1729431623284,0.29559928,68439.0,68437.0,0.00217]
[1729431623498,0.0762,68439.0,68437.0,0.00217]
[1729431630492,0.00219193,68438.0,68437.0,0.00217]
[1729431630966,0.09981688,68438.0,68437.0,0.00217]
[1729431631181,0.20021688,68438.0,68437.0,0.00217]
[1729431631817,0.20721346,68438.0,68437.0,0.00217]
[1729431633260,0.35333046,68438.0,68437.0,0.00217]
[1729431633466,0.20721346,68438.0,68437.0,0.00217]
[1729431640732,0.20804046,68438.0,68437.0,0.00217]
[1729431640943,0.58151661,68438.0,68437.0,0.00217]
[1729431641818,0.58351661,68438.0,68437.0,0.00217]
[1729431642029,0.60651661,68438.0,68437.0,0.00217]
[1729431642955,0.61651661,68438.0,68437.0,0.00217]
[1729431643205,0.84959532,68438.0,68437.0,0.00217]
[1729431643438,0.99855861,68438.0,68437.0,0.00217]
[1729431643650,0.93293665,68438.0,68437.0,0.00217]
[1729431643875,1.02042708,68438.0,68437.0,0.00217]
[1729431644316,1.04210688,68438.0,68437.0,0.00217]
[1729431644538,0.339924,68435.0,68434.0,0.00195]
[1729431644766,0.83169712,68435.0,68434.0,0.00195]
[1729431645647,0.78797267,68435.0,68434.0,0.00195]
[1729431646083,0.63417267,68435.0,68434.0,0.00195]
[1729431648504,0.62051178,68435.0,68434.0,0.00195]
[1729431648720,0.78310962,68435.0,68434.0,0.00195]
[1729431654546,0.79003131,68435.0,68434.0,0.00195]
[1729431655416,0.78446378,68435.0,68434.0,0.00195]
[1729431657153,0.77082509,68435.0,68434.0,0.00195]
[1729431657358,0.78446588,68435.0,68434.0,0.00195]
[1729431659558,0.78447387,68435.0,68434.0,0.00195]
[1729431660396,0.16313,68432.0,68431.0,0.003534]
[1729431660648,0.44410045,68432.0,68431.0,0.003534]
[1729431660884,0.45242731,68432.0,68431.0,0.003534]
[1729431661516,0.554479,68432.0,68431.0,0.003534]
[1729431666730,0.547479,68432.0,68431.0,0.003534]
[1729431666943,0.542479,68432.0,68431.0,0.003534]
[1729431667367,0.54249572,68432.0,68431.0,0.003534]
[1729431667790,0.44044403,68432.0,68431.0,0.003534]
[1729431668428,0.44544403,68432.0,68431.0,0.003534]
[1729431669822,0.43177853,68432.0,68431.0,0.003534]
[1729431670026,0.42677853,68432.0,68431.0,0.003534]
[1729431670245,0.44045341,68432.0,68431.0,0.003534]
[1729431671555,0.58087655,68432.0,68431.0,0.003534]
[1729431673134,0.58089475,68432.0,68431.0,0.003534]
[1729431673812,0.58289475,68432.0,68431.0,0.003534]
[1729431675966,0.58089475,68432.0,68431.0,0.003534]
[1729431676207,0.58289475,68432.0,68431.0,0.003534]
[1729431676747,0.56920167,68432.0,68431.0,0.003534]
[1729431676967,0.58289621,68432.0,68431.0,0.003534]
[1729431680493,0.56920167,68432.0,68431.0,0.003534]
[1729431680721,0.58289642,68432.0,68431.0,0.003534]
[1729431682469,0.58089642,68432.0,68431.0,0.003534]
[1729431683954,0.56720167,68432.0,68431.0,0.003534]
[1729431684174,0.5808971,68432.0,68431.0,0.003534]
[1729431684384,0.62465722,68432.0,68431.0,0.003534]
[1729431684818,0.5808971,68432.0,68431.0,0.003534]
[1729431685457,0.62666981,68432.0,68431.0,0.003534]
[1729431685695,0.5828971,68432.0,68431.0,0.003534]
[1729431686389,0.64853728,68432.0,68431.0,0.003534]
[1729431686598,0.5828971,68432.0,68431.0,0.003534]
[1729431687698,0.58289832,68432.0,68431.0,0.003534]
[1729431688632,0.67052988,68432.0,68431.0,0.003534]
[1729431688843,0.69229862,68432.0,68431.0,0.003534]
[1729431689055,0.69246605,68432.0,68431.0,0.003534]
[1729431689246,0.67055199,68432.0,68431.0,0.003534]
[1729431689495,0.66855199,68432.0,68431.0,0.003534]
[1729431689726,0.67055199,68432.0,68431.0,0.003534]
[1729431690824,0.66855199,68432.0,68431.0,0.003534]
[1729431691304,0.6685519,68432.0,68431.0,0.003534]
[1729431692980,0.6705519,68432.0,68431.0,0.003534]
[1729431693697,0.6685519,68432.0,68431.0,0.003534]
[1729431693926,0.67271285,68432.0,68431.0,0.003534]
[1729431695566,0.67271383,68432.0,68431.0,0.003534]
[1729431695839,0.67471383,68432.0,68431.0,0.003534]
[1729431697026,0.67271383,68432.0,68431.0,0.003534]
[1729431698222,0.67471383,68432.0,68431.0,0.003534]
[1729431698756,0.67472059,68432.0,68431.0,0.003534]
[1729431699898,0.69759222,68432.0,68431.0,0.003534]
[1729431702302,0.68389468,68432.0,68431.0,0.003534]
[1729431702511,0.69759318,68432.0,68431.0,0.003534]
[1729431703857,0.60993275,68432.0,68431.0,0.003534]
[1729431704358,0.69760153,68432.0,68431.0,0.003534]
[1729431706537,0.60993275,68432.0,68431.0,0.003534]
[1729431713015,0.59623425,68432.0,68431.0,0.003534]
[1729431713240,0.6099348,68432.0,68431.0,0.003534]
[1729431716657,0.7940348,68432.0,68431.0,0.003534]
[1729431718862,0.6479048,68432.0,68431.0,0.003534]
[1729431719108,0.7940348,68432.0,68431.0,0.003534]
[1729431720397,0.78033425,68432.0,68431.0,0.003534]
[1729431720616,0.794032,68432.0,68431.0,0.003534]
[1729431725129,0.79622433,68432.0,68431.0,0.003534]
[1729431726377,0.79622233,68432.0,68431.0,0.003534]
[1729431726881,0.89622233,68432.0,68431.0,0.003534]
[1729431727317,1.25421699,68432.0,68431.0,0.003534]
[1729431727505,1.12271204,68432.0,68431.0,0.003534]
[1729431727735,1.11797905,68432.0,68431.0,0.003534]
[1729431727954,1.11578672,68432.0,68431.0,0.003534]
[1729431728180,1.02074694,68432.0,68431.0,0.003534]
[1729431728400,1.02293946,68432.0,68431.0,0.003534]
[1729431728819,1.11793157,68432.0,68431.0,0.003534]
[1729431730161,1.24930328,68432.0,68431.0,0.003534]
[1729431730641,1.02289978,68432.0,68431.0,0.003534]
[1729431732044,1.24924582,68432.0,68431.0,0.003534]
[1729431732247,1.02289978,68432.0,68431.0,0.003534]
[1729431732717,2.26887178,68432.0,68431.0,0.003534]
[1729431733751,2.25517603,68432.0,68431.0,0.003534]
[1729431733957,2.49515455,68432.0,68431.0,0.003534]
[1729431734102,2.26885816,68432.0,68431.0,0.003534]
[1729431734556,2.13744791,68432.0,68431.0,0.003534]
[1729431737021,2.29904472,68432.0,68431.0,0.003534]
[1729431737474,2.29904199,68432.0,68431.0,0.003534]
[1729431738980,2.29986899,68432.0,68431.0,0.003534]
[1729431742503,2.43127924,68432.0,68431.0,0.003534]
[1729431742708,2.29986899,68432.0,68431.0,0.003534]
[1729431742913,2.43127924,68432.0,68431.0,0.003534]
[1729431744434,2.56879998,68432.0,68431.0,0.003534]
[1729431744652,2.56880329,68432.0,68431.0,0.003534]
[1729431746433,2.72260329,68432.0,68431.0,0.003534]
[1729431749184,2.72248627,68432.0,68431.0,0.003534]
[1729431752037,2.70880356,68432.0,68431.0,0.003534]
[1729431752248,2.72248741,68432.0,68431.0,0.003534]
[1729431752459,0.017,68417.0,68416.0,0.21939928]
[1729431752660,0.33731389,68417.0,68416.0,0.21939928]
[1729431752868,0.44596439,68417.0,68416.0,0.21939928]
[1729431753076,0.44596439,68417.0,68410.0,0.0815]
[1729431753077,0.153171,68413.0,68410.0,0.0815]
[1729431753297,0.44136408,68413.0,68410.0,0.0815]
[1729431753533,0.57879443,68413.0,68410.0,0.0815]
[1729431753917,0.58879443,68413.0,68410.0,0.0815]
[1729431758831,0.58879443,68413.0,68406.0,0.0824]
[1729431762903,0.57511058,68413.0,68406.0,0.0824]
[1729431763102,0.5887998,68413.0,68406.0,0.0824]
[1729431770334,0.5887998,68413.0,68412.0,0.001654]
[1729431771273,0.63257921,68413.0,68412.0,0.001654]
[1729431772639,0.632597,68413.0,68412.0,0.001654]
[1729431772849,0.6544956,68413.0,68412.0,0.001654]
[1729431773309,0.75047808,68413.0,68412.0,0.001654]
[1729431773941,0.73678886,68413.0,68412.0,0.001654]
[1729431774150,0.58880783,68413.0,68412.0,0.001654]
[1729431774770,0.66920783,68413.0,68412.0,0.001654]
[1729431775438,0.83088619,68413.0,68412.0,0.001654]
[1729431777322,0.75048619,68413.0,68412.0,0.001654]
[1729431781647,0.75050097,68413.0,68412.0,0.001654]
[1729431782355,0.83810614,68413.0,68412.0,0.001654]
[1729431783361,0.82440889,68413.0,68412.0,0.001654]
[1729431783590,0.58681224,68413.0,68412.0,0.001654]
[1729431783838,0.58881224,68413.0,68412.0,0.001654]
[1729431784302,0.83813177,68413.0,68412.0,0.001654]
[1729431786638,0.99203177,68413.0,68412.0,0.001654]
[1729431786884,0.83813177,68413.0,68412.0,0.001654]
[1729431787868,0.75051914,68413.0,68412.0,0.001654]
[1729431788551,0.74851914,68413.0,68412.0,0.001654]
[1729431788743,0.75051914,68413.0,68412.0,0.001654]
[1729431789915,0.83816983,68413.0,68412.0,0.001654]
[1729431790155,0.75051914,68413.0,68412.0,0.001654]
[1729431791235,0.83816983,68413.0,68412.0,0.001654]
[1729431791451,0.75051914,68413.0,68412.0,0.001654]
[1729431794358,0.82446817,68413.0,68412.0,0.001654]
[1729431794569,0.83817004,68413.0,68412.0,0.001654]
[1729431796312,0.83831207,68413.0,68412.0,0.001654]
[1729431798083,0.83831193,68413.0,68412.0,0.001654]
[1729431800270,0.75063602,68413.0,68412.0,0.001654]
[1729431801379,0.83836213,68413.0,68412.0,0.001654]
[1729431801593,0.75066858,68413.0,68412.0,0.001654]
[1729431802264,0.61123823,68413.0,68412.0,0.001654]
[1729431802477,0.46006723,68413.0,68412.0,0.001654]
[1729431802953,0.36397926,68413.0,68412.0,0.001654]
[1729431803418,0.51015026,68413.0,68412.0,0.001654]
[1729431804065,0.51214929,68413.0,68412.0,0.001654]
[1729431804522,0.60822989,68413.0,68412.0,0.001654]
[1729431804946,0.51214709,68413.0,68412.0,0.001654]
[1729431805160,0.64437801,68413.0,68412.0,0.001654]
[1729431805377,0.64222519,68413.0,68412.0,0.001654]
[1729431805816,0.50999224,68413.0,68412.0,0.001654]
[1729431806468,0.50799224,68413.0,68412.0,0.001654]
[1729431807833,0.50798935,68413.0,68412.0,0.001654]
[1729431810700,0.50798487,68413.0,68412.0,0.001654]
[1729431812616,0.49628519,68413.0,68412.0,0.001654]
[1729431812830,0.50998336,68413.0,68412.0,0.001654]
[1729431813721,0.50798336,68413.0,68412.0,0.001654]
[1729431814847,0.50998336,68413.0,68412.0,0.001654]
[1729431815500,0.50997808,68413.0,68412.0,0.001654]
[1729431816175,0.44422763,68413.0,68412.0,0.001654]
[1729431816604,0.44222763,68413.0,68412.0,0.001654]
[1729431817252,0.60403286,68413.0,68412.0,0.001654]
[1729431817689,0.44222763,68413.0,68412.0,0.001654]
[1729431818050,0.42852946,68413.0,68412.0,0.001654]
[1729431818278,0.44222983,68413.0,68412.0,0.001654]
[1729431818498,0.50985275,68413.0,68412.0,0.001654]
[1729431818729,0.51185275,68413.0,68412.0,0.001654]
[1729431819204,0.50985275,68413.0,68412.0,0.001654]
[1729431819475,0.50797954,68413.0,68412.0,0.001654]
[1729431819986,0.50297944,68413.0,68412.0,0.001654]
[1729431820226,0.43722983,68413.0,68412.0,0.001654]
[1729431820456,0.44222983,68413.0,68412.0,0.001654]
[1729431821533,0.44422983,68413.0,68412.0,0.001654]
[1729431823019,0.57623923,68413.0,68412.0,0.001654]
[1729431823435,0.64198884,68413.0,68412.0,0.001654]
[1729431823706,0.62828847,68413.0,68412.0,0.001654]
[1729431823915,0.64199035,68413.0,68412.0,0.001654]
[1729431825179,0.82574275,68413.0,68412.0,0.001654]
[1729431826301,0.736066,68413.0,68412.0,0.001654]
[1729431826509,0.82574275,68413.0,68412.0,0.001654]
[1729431826936,0.57624074,68413.0,68412.0,0.001654]
[1729431827360,0.82574018,68413.0,68412.0,0.001654]
[1729431827584,0.82574134,68413.0,68412.0,0.001654]
[1729431828227,0.5762419,68413.0,68412.0,0.001654]
[1729431828429,0.82574602,68413.0,68412.0,0.001654]
[1729431828634,0.73806927,68413.0,68412.0,0.001654]
[1729431828840,0.8257524,68413.0,68412.0,0.001654]
[1729431829051,0.73806927,68413.0,68412.0,0.001654]
[1729431830336,0.73606927,68413.0,68412.0,0.001654]
[1729431830550,0.73806927,68413.0,68412.0,0.001654]
[1729431830967,0.73606927,68413.0,68412.0,0.001654]
[1729431831636,0.72236623,68413.0,68412.0,0.001654]
[1729431832530,0.81004936,68413.0,68412.0,0.001654]
[1729431832745,0.81204936,68413.0,68412.0,0.001654]
[1729431834266,0.72436623,68413.0,68412.0,0.001654]
[1729431834487,0.72236623,68413.0,68412.0,0.001654]
[1729431834725,0.72239561,68413.0,68412.0,0.001654]
[1729431836101,0.72439561,68413.0,68412.0,0.001654]
[1729431837419,0.81209272,68413.0,68412.0,0.001654]
[1729431837649,0.72439561,68413.0,68412.0,0.001654]
[1729431838098,0.83401288,68413.0,68412.0,0.001654]
[1729431838315,0.72439561,68413.0,68412.0,0.001654]
[1729431838765,0.81209447,68413.0,68412.0,0.001654]
[1729431839532,0.65023744,68413.0,68412.0,0.001654]
[1729431839772,0.56053886,68413.0,68412.0,0.001654]
[1729431840013,0.7224044,68413.0,68412.0,0.001654]
[1729431840239,0.83202762,68413.0,68412.0,0.001654]
[1729431840457,0.81010656,68413.0,68412.0,0.001654]
[1729431840678,0.7244044,68413.0,68412.0,0.001654]
[1729431840896,0.83402762,68413.0,68412.0,0.001654]
[1729431841535,0.7244044,68413.0,68412.0,0.001654]
[1729431841745,0.82902762,68413.0,68412.0,0.001654]
[1729431842843,0.82903572,68413.0,68412.0,0.001654]
[1729431843487,0.71940923,68413.0,68412.0,0.001654]
[1729431843719,0.82903572,68413.0,68412.0,0.001654]
[1729431844164,0.69702632,68413.0,68412.0,0.001654]
[1729431844379,0.58539983,68413.0,68412.0,0.001654]
[1729431845015,0.69502632,68413.0,68412.0,0.001654]
[1729431845286,0.58539983,68413.0,68412.0,0.001654]
[1729431845557,0.69502632,68413.0,68412.0,0.001654]
[1729431845790,0.58539983,68413.0,68412.0,0.001654]
[1729431846689,0.67310196,68413.0,68412.0,0.001654]
[1729431847565,0.65010196,68413.0,68412.0,0.001654]
[1729431847794,0.50393096,68413.0,68412.0,0.001654]
[1729431848053,0.32013321,68413.0,68412.0,0.093654]
[1729431848522,0.46630421,68413.0,68412.0,0.093654]
[1729431848754,0.32013321,68413.0,68412.0,0.093654]
[1729431848990,0.46630421,68413.0,68412.0,0.093654]
[1729431853615,0.40052946,68413.0,68412.0,0.093654]
[1729431853842,0.46630421,68413.0,68412.0,0.093654]
[1729431854288,0.40052946,68413.0,68412.0,0.093654]
[1729431857930,0.25435846,68413.0,68412.0,0.093654]
[1729431858243,0.29820044,68413.0,68412.0,0.172654]
[1729431858474,0.25435846,68413.0,68412.0,0.172654]
[1729431858710,0.10539931,68413.0,68412.0,0.172654]
[1729431859443,0.10759192,68413.0,68412.0,0.172654]
[1729431860290,0.146165,68416.0,68414.0,0.0936]
[1729431860521,0.29512415,68416.0,68414.0,0.0936]
[1729431861232,0.146166,68415.0,68414.0,0.0936]
[1729431861471,0.24538801,68415.0,68414.0,0.0936]
[1729431863118,0.09922201,68415.0,68414.0,0.0936]
[1729431864027,0.24538801,68415.0,68414.0,0.0936]
[1729431867943,0.2574989,68415.0,68414.0,0.0936]
[1729431874252,0.2574989,68415.0,68414.0,0.0930127]
[1729431881142,0.2583259,68415.0,68414.0,0.0930127]
[1729431885260,0.1121599,68415.0,68413.0,0.09406208]
[1729431885482,0.146168,68414.0,68413.0,0.09406208]
[1729431885703,0.25725667,68414.0,68413.0,0.09406208]
[1729431894173,0.25808367,68414.0,68413.0,0.09406208]
[1729431895083,0.27178792,68414.0,68413.0,0.09406208]
[1729431895530,0.25808367,68414.0,68413.0,0.09406208]
[1729431896415,0.11191567,68414.0,68413.0,0.09406208]
[1729431896721,0.11191567,68414.0,68413.0,0.27106208]
[1729431897123,0.11410846,68414.0,68413.0,0.27106208]
[1729431898105,0.26027646,68414.0,68413.0,0.27106208]
[1729431899495,0.11410846,68414.0,68413.0,0.27106208]
[1729431900125,0.26027646,68414.0,68413.0,0.27106208]
[1729431900552,0.11410846,68414.0,68413.0,0.27106208]
[1729431900783,0.26027646,68414.0,68413.0,0.27106208]
[1729431901007,0.11410846,68414.0,68413.0,0.27106208]
[1729431901237,0.11191567,68414.0,68413.0,0.27106208]
[1729431902131,0.11191567,68414.0,68413.0,0.41723308]
[1729431902363,0.01294354,68414.0,68413.0,0.41723308]
[1729431902568,0.000827,68414.0,68413.0,0.41723308]
[1729431902794,0.00978291,68414.0,68413.0,0.42223308]
[1729431903022,0.000827,68414.0,68413.0,0.42223308]
[1729431914667,0.000827,68414.0,68413.0,0.34163308]
[1729431925616,0.000827,68414.0,68413.0,0.41673308]
[1729431958538,0.000827,68414.0,68413.0,0.34163308]
[1729431964358,0.000827,68414.0,68413.0,0.3853109]
[1729431964844,0.000827,68414.0,68413.0,0.40714962]
[1729431965335,0.000827,68414.0,68413.0,0.38531216]
[1729431971715,0.000827,68414.0,68413.0,0.68148679]
[1729431971930,0.000827,68414.0,68413.0,0.69148679]
[1729431972146,0.000827,68414.0,68413.0,0.62778975]
[1729431972374,0.000827,68414.0,68413.0,0.65078975]
[1729431975023,0.000827,68414.0,68413.0,0.65278975]
[1729431976938,0.000827,68414.0,68413.0,0.67415667]
[1729431977370,0.000827,68414.0,68413.0,0.62865915]
[1729431980422,0.000827,68414.0,68413.0,0.73764636]
[1729431981262,0.000827,68414.0,68413.0,0.83764636]
[1729431984512,0.000827,68414.0,68413.0,0.72865915]
[1729431984922,0.000827,68414.0,68413.0,0.69695915]
[1729431987726,0.000827,68414.0,68413.0,0.80594636]
[1729431988617,0.000827,68414.0,68413.0,0.80588936]
[1729431991446,0.000827,68414.0,68413.0,0.74234142]
[1729431992171,0.0496824,68430.0,68429.0,0.322636]
[1729431992656,0.01147682,68430.0,68429.0,0.322636]
[1729431992856,0.000827,68431.0,68429.0,0.1765]
[1729431993152,0.000827,68431.0,68430.0,0.151134]
[1729431993613,0.000827,68431.0,68430.0,0.30509315]
[1729431993859,0.000827,68431.0,68430.0,0.31509315]
[1729431996270,0.000827,68431.0,68430.0,0.35862955]
[1729431997357,0.000827,68431.0,68430.0,0.31509315]
[1729431999850,0.000827,68431.0,68430.0,0.41509315]
[1729432000959,0.000827,68431.0,68430.0,0.50709315]
[1729432004949,0.000827,68431.0,68430.0,0.50909315]
[1729432005600,0.000827,68431.0,68430.0,0.55062955]
[1729432005827,0.000827,68431.0,68430.0,0.55262955]
[1729432006504,0.000827,68431.0,68430.0,0.50909315]
[1729432008110,0.000827,68431.0,68430.0,0.50709315]
[1729432013432,0.000827,68431.0,68430.0,0.57227076]
[1729432015028,0.000827,68431.0,68430.0,0.57427076]
[1729432015459,0.000827,68431.0,68430.0,0.55438688]
[1729432015680,0.000827,68434.0,68433.0,0.022]
[1729432015898,0.000827,68434.0,68433.0,0.56020256]
[1729432016113,0.000827,68434.0,68433.0,0.66590065]
[1729432016327,0.000827,68434.0,68433.0,0.74510065]
[1729432016534,1e-06,68434.0,68433.0,0.74510065]
[1729432017430,1e-06,68434.0,68433.0,0.63648088]
[1729432018540,1e-06,68434.0,68433.0,0.74509427]
[1729432019640,1e-06,68437.0,68436.0,0.266121]
[1729432019869,0.000827,68440.0,68436.0,0.266121]
[1729432019870,0.000827,68440.0,68439.0,0.02]
[1729432020093,0.000827,68440.0,68439.0,0.41507415]
[1729432020955,0.1279342,68453.0,68439.0,0.41507415]
[1729432021170,0.1279342,68453.0,68443.0,0.266106]
[1729432021397,0.1279342,68453.0,68443.0,0.41506515]
[1729432023177,1e-08,68445.0,68444.0,0.266104]
[1729432023399,1e-08,68445.0,68444.0,0.41506315]
[1729432025211,1e-08,68445.0,68444.0,0.50956315]
[1729432027187,1e-08,68445.0,68444.0,0.53050609]
[1729432027829,1e-08,68445.0,68444.0,0.57580577]
[1729432028722,1e-08,68445.0,68444.0,0.57780577]
[1729432029360,1e-08,68445.0,68444.0,0.53250609]
[1729432029577,1e-08,68445.0,68444.0,0.57780295]
[1729432030026,1e-08,68445.0,68444.0,0.64291178]
[1729432030238,1e-08,68445.0,68444.0,0.64290184]
[1729432030469,1e-08,68445.0,68444.0,0.57780295]
[1729432031158,1e-08,68445.0,68444.0,0.64290751]
[1729432031347,1e-08,68445.0,68444.0,0.57780295]
[1729432031623,1e-08,68445.0,68444.0,0.64291129]
[1729432032068,1e-08,68445.0,68444.0,0.58780295]
[1729432032311,1e-08,68445.0,68444.0,0.67010295]
[1729432032560,1e-08,68445.0,68444.0,0.75691898]
[1729432033017,1e-08,68445.0,68444.0,0.75691682]
[1729432033665,1e-08,68445.0,68444.0,0.9763161]
[1729432033879,1e-08,68445.0,68444.0,0.7569249]
[1729432034105,1e-08,68445.0,68444.0,0.67010295]
[1729432034556,1e-08,68445.0,68444.0,0.66010295]
[1729432035001,1e-08,68445.0,68444.0,0.76862299]
[1729432035665,1e-08,68445.0,68444.0,0.66010295]
[1729432037476,1e-08,68445.0,68444.0,0.69310295]
[1729432039400,1e-08,68445.0,68444.0,0.82333655]
[1729432039617,1e-08,68445.0,68444.0,0.69310295]
[1729432039843,1e-08,68453.0,68452.0,0.268087]
[1729432040069,1e-08,68453.0,68452.0,0.72687149]
[1729432040295,1e-08,68456.0,68455.0,0.266081]
[1729432040520,1e-08,68456.0,68455.0,0.41504015]
[1729432040756,1e-08,68456.0,68455.0,0.4584517]
[1729432042158,1e-08,68456.0,68455.0,0.41504015]
[1729432043305,1e-08,68456.0,68455.0,0.45844519]
[1729432044062,1e-08,68456.0,68455.0,0.45844655]
[1729432044535,1e-08,68456.0,68455.0,0.46044655]
[1729432044776,1e-08,68456.0,68455.0,0.41704015]
[1729432044999,1e-08,68456.0,68455.0,0.51684015]
[1729432045662,1e-08,68456.0,68455.0,0.6489002]
[1729432046170,1e-08,68456.0,68455.0,0.7251002]
[1729432046869,6e-08,68457.0,68456.0,0.367879]
[1729432047086,6e-08,68457.0,68456.0,0.6612854]
[1729432047302,6e-08,68457.0,68456.0,0.7698014]
[1729432048349,6e-08,68457.0,68456.0,0.6612854]
[1729432051112,6e-08,68457.0,68456.0,0.6592854]
[1729432051568,6e-08,68457.0,68456.0,0.74606092]
[1729432051782,6e-08,68457.0,68456.0,0.6612854]
[1729432052427,6e-08,68457.0,68456.0,0.7698014]
[1729432052866,6e-08,68457.0,68456.0,0.5600854]
[1729432053084,6e-08,68457.0,68456.0,0.54706298]
[1729432055505,6e-08,68457.0,68456.0,0.4602854]
[1729432055936,0.00082706,68457.0,68456.0,0.4602854]
[1729432056378,0.00082706,68457.0,68456.0,0.56875737]
[1729432056597,0.00082706,68457.0,68456.0,0.68915737]
[1729432057731,0.00082706,68457.0,68456.0,0.6892047]
[1729432057943,0.00082706,68457.0,68456.0,0.68920584]
[1729432058183,0.00082706,68457.0,68456.0,0.66620584]
[1729432058400,0.00082706,68457.0,68456.0,0.5576854]
[1729432062930,0.00082706,68457.0,68456.0,0.5596854]
[1729432064868,0.00082706,68457.0,68456.0,0.5576854]
[1729432065305,0.00082706,68457.0,68456.0,0.5596854]
[1729432065744,0.00082706,68457.0,68456.0,0.5576854]
[1729432068911,0.00082706,68457.0,68456.0,0.5593394]
[1729432070769,0.00082706,68457.0,68456.0,0.5693394]
[1729432070972,0.00082706,68457.0,68456.0,0.69970632]
[1729432071242,0.00082706,68457.0,68456.0,0.5693394]
[1729432072284,0.00082706,68457.0,68456.0,0.69977057]
[1729432072727,0.00082706,68457.0,68456.0,0.70177057]
[1729432073148,0.00082706,68457.0,68456.0,0.69977057]
[1729432073598,0.00082706,68457.0,68456.0,0.70177057]
[1729432074026,0.00082706,68457.0,68456.0,0.69977057]
[1729432074221,0.00082706,68457.0,68456.0,0.5693394]
[1729432075738,0.00082706,68457.0,68456.0,0.4719394]
[1729432075945,0.00082706,68457.0,68456.0,0.4619394]
[1729432076444,0.00082706,68457.0,68456.0,0.5569394]
[1729432078437,6e-08,68457.0,68456.0,0.5799394]
[1729432078649,6e-08,68457.0,68456.0,0.5819394]
[1729432079092,6e-08,68457.0,68456.0,0.5799394]
[1729432081667,6e-08,68457.0,68456.0,0.5819394]
[1729432081871,6e-08,68457.0,68456.0,0.5799394]
[1729432082531,6e-08,68457.0,68456.0,0.5819394]
[1729432082951,6e-08,68457.0,68456.0,0.5799394]
[1729432084033,6e-08,68457.0,68456.0,0.4619394]
[1729432087248,0.17380006,68457.0,68456.0,0.4619394]
[1729432088517,0.17380006,68457.0,68456.0,0.59264686]
[1729432088755,0.17380006,68457.0,68456.0,0.43368771]
[1729432089151,0.17380006,68457.0,68456.0,0.30298025]
[1729432091982,0.17380006,68457.0,68456.0,0.29798025]
[1729432092450,0.17380006,68457.0,68456.0,0.30298025]
[1729432093273,0.17380006,68457.0,68456.0,0.41187707]
[1729432093480,0.17380006,68457.0,68456.0,0.257733]
[1729432093707,0.17380006,68457.0,68456.0,0.36161736]
[1729432093916,0.17380006,68457.0,68456.0,0.252733]
[1729432094133,0.17380006,68457.0,68456.0,0.31806914]
[1729432094769,0.17380006,68457.0,68456.0,0.252733]
[1729432094977,0.17380006,68457.0,68456.0,0.29628368]
[1729432096560,0.17380006,68457.0,68456.0,0.252733]
[1729432098238,0.17380006,68457.0,68456.0,0.152733]
[1729432123395,0.17380006,68457.0,68456.0,0.147733]
[1729432128840,0.17380006,68457.0,68456.0,0.001654]
[1729432143114,0.07860006,68457.0,68456.0,0.001654]
[1729432144175,0.07860006,68457.0,68456.0,0.147733]
[1729432144351,0.07860006,68457.0,68456.0,0.001654]
[1729432144591,0.07860006,68457.0,68456.0,0.147733]
[1729432145207,0.07860006,68457.0,68456.0,0.001654]
[1729432148429,0.07860006,68457.0,68456.0,0.147733]
[1729432148676,6e-08,68457.0,68456.0,0.147733]
[1729432152518,6e-08,68457.0,68456.0,0.001654]
[1729432152709,6e-08,68457.0,68456.0,0.147733]
[1729432152955,6e-08,68457.0,68456.0,0.001654]
[1729432153205,6e-08,68457.0,68456.0,0.246233]
[1729432172854,6e-08,68457.0,68456.0,0.152733]
[1729432182851,6e-08,68457.0,68456.0,0.001654]
[1729432182852,0.32446621,68457.0,68456.0,0.001654]
[1729432184912,0.32446621,68457.0,68441.0,0.0670393]
[1729432184913,0.292178,68452.0,68441.0,0.0670393]
[1729432185162,0.292178,68452.0,68433.0,0.03]
[1729432185163,0.005,68434.0,68433.0,0.03]
[1729432185381,0.12362559,68434.0,68433.0,0.176128]
[1729432185598,0.09943902,68434.0,68433.0,0.176128]
[1729432185815,0.005,68445.0,68440.0,0.146113]
[1729432186049,0.21939928,68441.0,68439.0,0.146113]
[1729432186264,0.00219192,68442.0,68438.0,0.146115]
[1729432186551,0.00219192,68442.0,68436.0,0.146119]
[1729432186767,0.00219192,68442.0,68437.0,0.146118]
[1729432188491,0.0301692,68441.0,68437.0,0.146118]
[1729432188700,0.00219192,68442.0,68437.0,0.146118]
[1729432198562,0.00219192,68442.0,68436.0,0.147774]
[1729432199850,0.00219192,68442.0,68438.0,0.146116]
[1729432200066,0.00219192,68442.0,68436.0,0.147774]
[1729432200706,0.00301992,68442.0,68436.0,0.147774]
[1729432200917,0.04567111,68442.0,68436.0,0.147774]
[1729432201129,0.04567111,68442.0,68437.0,0.146119]
[1729432201338,0.04567111,68442.0,68436.0,0.001654]
[1729432201339,0.00301992,68442.0,68436.0,0.001654]
[1729432201555,0.00301992,68442.0,68437.0,0.146119]
[1729432201767,0.00301992,68442.0,68437.0,0.292237]
[1729432202029,0.00301992,68442.0,68436.0,0.001654]
[1729432202246,0.00301992,68442.0,68439.0,0.146113]
[1729432203106,0.00301992,68442.0,68438.0,0.146116]
[1729432203353,0.00301992,68442.0,68439.0,0.146114]
[1729432204020,0.00301992,68442.0,68438.0,0.146117]
[1729432208686,0.00301992,68442.0,68437.0,0.146119]